[Event "Late-Titled-Tuesday-Blitz-January-30-2024"]
[Site "Chess.com"]
[Date "2024.01.30"]
[Round "5"]
[White "Beca95"]
[Black "Mikhail_Golubev"]
[Result "1/2-1/2"]
[WhiteElo "2961"]
[BlackElo "2663"]
[TimeControl "180+1"]
[EndTime "14:57:26 PST"]
[Termination "Game drawn by repetition"]

1. e4 {[%clk 0:03:00.9]} 1... c5 {[%clk 0:02:59.4]} 2. Nc3 {[%clk 0:03:01.3]}
2... Nc6 {[%clk 0:02:58.4]} 3. Bb5 {[%clk 0:03:01.1]} 3... Nd4 {[%clk
0:02:55.6]} 4. Nf3 {[%clk 0:03:01.2]} 4... e6 {[%clk 0:02:48.8]} 5. O-O {[%clk
0:02:51.7]} 5... a6 {[%clk 0:02:48.3]} 6. Bd3 {[%clk 0:02:50.8]} 6... Nc6 {[%clk
0:02:38.8]} 7. b3 {[%clk 0:02:51]} 7... g6 {[%clk 0:02:32.6]} 8. Bb2 {[%clk
0:02:49]} 8... Bg7 {[%clk 0:02:32.3]} 9. Na4 {[%clk 0:02:47.2]} 9... Bxb2 {[%clk
0:02:29.5]} 10. Nxb2 {[%clk 0:02:48.1]} 10... Nge7 {[%clk 0:02:18]} 11. e5
{[%clk 0:02:47.4]} 11... d5 {[%clk 0:02:09.6]} 12. exd6 {[%clk 0:02:48.3]} 12...
Qxd6 {[%clk 0:02:09.2]} 13. Nc4 {[%clk 0:02:49]} 13... Qc7 {[%clk 0:02:07.8]}
14. a4 {[%clk 0:02:49]} 14... O-O {[%clk 0:02:02.6]} 15. Re1 {[%clk 0:02:48.6]}
15... b6 {[%clk 0:01:55.4]} 16. Nfe5 {[%clk 0:02:40.7]} 16... Bb7 {[%clk
0:01:51.5]} 17. Nxc6 {[%clk 0:02:39.5]} 17... Nxc6 {[%clk 0:01:47.5]} 18. Be4
{[%clk 0:02:39.7]} 18... b5 {[%clk 0:01:41.8]} 19. Ne3 {[%clk 0:02:38.7]} 19...
f5 {[%clk 0:01:34.1]} 20. Bf3 {[%clk 0:02:38]} 20... Rad8 {[%clk 0:01:30.5]} 21.
axb5 {[%clk 0:02:35.4]} 21... axb5 {[%clk 0:01:30.4]} 22. d3 {[%clk 0:02:18.4]}
22... e5 {[%clk 0:01:22]} 23. Bd5+ {[%clk 0:02:17.1]} 23... Kg7 {[%clk
0:01:18.6]} 24. c4 {[%clk 0:02:17.2]} 24... bxc4 {[%clk 0:01:08.4]} 25. bxc4
{[%clk 0:02:16.1]} 25... Rd7 {[%clk 0:01:04]} 26. Nc2 {[%clk 0:02:05.3]} 26...
Rfd8 {[%clk 0:00:50.3]} 27. Qe2 {[%clk 0:02:05.2]} 27... Na5 {[%clk 0:00:38]}
28. Bxb7 {[%clk 0:02:01.2]} 28... Nxb7 {[%clk 0:00:37.5]} 29. Qxe5+ {[%clk
0:02:01.3]} 29... Qxe5 {[%clk 0:00:37.5]} 30. Rxe5 {[%clk 0:02:01.9]} 30... Rxd3
{[%clk 0:00:33.5]} 31. h4 {[%clk 0:01:59]} 31... Rd1+ {[%clk 0:00:31.4]} 32.
Rxd1 {[%clk 0:01:57.8]} 32... Rxd1+ {[%clk 0:00:32.3]} 33. Kh2 {[%clk
0:01:58.3]} 33... Rd2 {[%clk 0:00:29.3]} 34. Ne3 {[%clk 0:01:50.4]} 34... Nd6
{[%clk 0:00:29.2]} 35. Re7+ {[%clk 0:01:43.1]} 35... Kf6 {[%clk 0:00:27.7]} 36.
Rxh7 {[%clk 0:01:41.3]} 36... Rxf2 {[%clk 0:00:27.2]} 37. Rc7 {[%clk 0:01:28.4]}
37... Ne4 {[%clk 0:00:24.8]} 38. Rc6+ {[%clk 0:01:28.3]} 38... Ke5 {[%clk
0:00:21.5]} 39. Rxg6 {[%clk 0:01:26.5]} 39... Kd4 {[%clk 0:00:21.7]} 40. Nd5
{[%clk 0:01:08.9]} 40... Kxc4 {[%clk 0:00:19.2]} 41. Nf6 {[%clk 0:01:06.4]}
41... Nxf6 {[%clk 0:00:14.1]} 42. Rxf6 {[%clk 0:01:06.2]} 42... Kd4 {[%clk
0:00:14.3]} 43. h5 {[%clk 0:01:06.1]} 43... Ke5 {[%clk 0:00:14]} 44. Rf8 {[%clk
0:01:05.7]} 44... Rf4 {[%clk 0:00:13.1]} 45. g3 {[%clk 0:01:05.5]} 45... Rf2+
{[%clk 0:00:13.1]} 46. Kh3 {[%clk 0:01:06]} 46... Rf1 {[%clk 0:00:13.2]} 47. Kh4
{[%clk 0:01:00.1]} 47... Ra1 {[%clk 0:00:14.1]} 48. Kg5 {[%clk 0:00:59.4]} 48...
Rg1 {[%clk 0:00:12.5]} 49. Re8+ {[%clk 0:00:58.6]} 49... Kd4 {[%clk 0:00:12.3]}
50. Rd8+ {[%clk 0:00:38.2]} 50... Ke3 {[%clk 0:00:11.8]} 51. Re8+ {[%clk
0:00:25]} 51... Kd3 {[%clk 0:00:11.7]} 52. Rd8+ {[%clk 0:00:11.5]} 52... Ke3
{[%clk 0:00:11.4]} 53. Re8+ {[%clk 0:00:10.3]} 53... Kd3 {[%clk 0:00:11.5]} 54.
Rd8+ {[%clk 0:00:10.2]} 54... Ke3 {[%clk 0:00:11.8]} 1/2-1/2

[Event "Late-Titled-Tuesday-Blitz-January-30-2024"]
[Site "Chess.com"]
[Date "2024.01.30"]
[Round "5"]
[White "ozen_metehan"]
[Black "Harsha_Bharathakoti"]
[Result "1/2-1/2"]
[WhiteElo "2479"]
[BlackElo "2888"]
[TimeControl "180+1"]
[EndTime "14:57:26 PST"]
[Termination "Game drawn by repetition"]

1. e4 {[%clk 0:03:00.9]} 1... c5 {[%clk 0:03:00.4]} 2. Nf3 {[%clk 0:02:59.7]}
2... e6 {[%clk 0:03:01.2]} 3. b3 {[%clk 0:02:59.6]} 3... a6 {[%clk 0:03:01.3]}
4. Bb2 {[%clk 0:02:59.1]} 4... Nc6 {[%clk 0:03:01.7]} 5. Nc3 {[%clk 0:02:56.5]}
5... Nf6 {[%clk 0:03:01.2]} 6. d4 {[%clk 0:02:56.5]} 6... cxd4 {[%clk
0:03:01.1]} 7. Nxd4 {[%clk 0:02:57.4]} 7... Bc5 {[%clk 0:02:45.1]} 8. Nxc6
{[%clk 0:02:51.7]} 8... bxc6 {[%clk 0:02:46]} 9. Qd2 {[%clk 0:02:49.6]} 9... d5
{[%clk 0:02:45.2]} 10. O-O-O {[%clk 0:02:48]} 10... O-O {[%clk 0:02:41.6]} 11.
Bd3 {[%clk 0:02:38.9]} 11... a5 {[%clk 0:02:35.3]} 12. f3 {[%clk 0:02:34.3]}
12... Ba6 {[%clk 0:02:11.5]} 13. Kb1 {[%clk 0:02:22.5]} 13... Bb4 {[%clk
0:02:09.4]} 14. Bxa6 {[%clk 0:02:00.4]} 14... Rxa6 {[%clk 0:02:09]} 15. Qd3
{[%clk 0:01:58.3]} 15... Ra8 {[%clk 0:02:07.3]} 16. g4 {[%clk 0:01:53.1]} 16...
Nd7 {[%clk 0:02:06]} 17. h4 {[%clk 0:01:46.2]} 17... Re8 {[%clk 0:01:50.9]} 18.
h5 {[%clk 0:01:44.4]} 18... Nc5 {[%clk 0:01:46.3]} 19. Qe3 {[%clk 0:01:42.2]}
19... Nd7 {[%clk 0:01:34.8]} 20. h6 {[%clk 0:01:29.3]} 20... g6 {[%clk
0:01:34.9]} 21. g5 {[%clk 0:01:25.3]} 21... c5 {[%clk 0:01:16.5]} 22. exd5
{[%clk 0:01:00.4]} 22... exd5 {[%clk 0:01:16.7]} 23. Qf4 {[%clk 0:01:00.8]}
23... Bxc3 {[%clk 0:01:10.8]} 24. Bxc3 {[%clk 0:00:54.9]} 24... d4 {[%clk
0:01:11]} 25. Bb2 {[%clk 0:00:49.7]} 25... Nf8 {[%clk 0:00:35.1]} 26. Qg4 {[%clk
0:00:37.9]} 26... a4 {[%clk 0:00:25.3]} 27. Rhe1 {[%clk 0:00:34.1]} 27... axb3
{[%clk 0:00:25.8]} 28. axb3 {[%clk 0:00:33.7]} 28... Qd5 {[%clk 0:00:17.6]} 29.
Qf4 {[%clk 0:00:20.1]} 29... Qf5 {[%clk 0:00:09.9]} 30. Qxf5 {[%clk 0:00:15.6]}
30... gxf5 {[%clk 0:00:10.8]} 31. b4 {[%clk 0:00:14.7]} 31... cxb4 {[%clk
0:00:11.7]} 32. Bxd4 {[%clk 0:00:14.1]} 32... Rxe1 {[%clk 0:00:08.3]} 33. Rxe1
{[%clk 0:00:14.1]} 33... Ne6 {[%clk 0:00:08.7]} 34. Bf6 {[%clk 0:00:14.1]} 34...
Ra3 {[%clk 0:00:02.8]} 35. Kb2 {[%clk 0:00:11.8]} 35... Kf8 {[%clk 0:00:01.6]}
36. Rd1 {[%clk 0:00:05]} 36... Ke8 {[%clk 0:00:01.6]} 37. Rd5 {[%clk 0:00:05.2]}
37... Rxf3 {[%clk 0:00:02]} 38. Rb5 {[%clk 0:00:05.1]} 38... f4 {[%clk
0:00:02.5]} 39. Rxb4 {[%clk 0:00:05.4]} 39... Rf1 {[%clk 0:00:02.2]} 40. Rb8+
{[%clk 0:00:03.6]} 40... Kd7 {[%clk 0:00:02.8]} 41. Rh8 {[%clk 0:00:03.9]} 41...
f3 {[%clk 0:00:02.9]} 42. Rxh7 {[%clk 0:00:04.2]} 42... f2 {[%clk 0:00:03.5]}
43. Rxf7+ {[%clk 0:00:04]} 43... Ke8 {[%clk 0:00:04.2]} 44. Re7+ {[%clk
0:00:01.9]} 44... Kf8 {[%clk 0:00:04.6]} 45. Rxe6 {[%clk 0:00:01.9]} 45... Rb1+
{[%clk 0:00:05.2]} 46. Kxb1 {[%clk 0:00:01.9]} 46... f1=Q+ {[%clk 0:00:06.1]}
47. Kb2 {[%clk 0:00:02.8]} 47... Qb5+ {[%clk 0:00:06.7]} 48. Kc1 {[%clk
0:00:02.9]} 48... Qf1+ {[%clk 0:00:07]} 49. Kb2 {[%clk 0:00:02.7]} 49... Qb5+
{[%clk 0:00:06.9]} 50. Kc1 {[%clk 0:00:02.8]} 50... Qf1+ {[%clk 0:00:07.6]} 51.
Kb2 {[%clk 0:00:02.1]} 1/2-1/2

[Event "Late-Titled-Tuesday-Blitz-January-30-2024"]
[Site "Chess.com"]
[Date "2024.01.30"]
[Round "5"]
[White "HalfIsCrayfish"]
[Black "elchacal664"]
[Result "1/2-1/2"]
[WhiteElo "2581"]
[BlackElo "2417"]
[TimeControl "180+1"]
[EndTime "14:57:26 PST"]
[Termination "Game drawn by repetition"]

1. e4 {[%clk 0:03:00.9]} 1... e6 {[%clk 0:02:59]} 2. Nc3 {[%clk 0:03:00]} 2...
d5 {[%clk 0:02:59.1]} 3. exd5 {[%clk 0:03:00.1]} 3... exd5 {[%clk 0:02:58.1]} 4.
d4 {[%clk 0:02:59.8]} 4... Nf6 {[%clk 0:02:58]} 5. Bd3 {[%clk 0:02:59.9]} 5...
Be7 {[%clk 0:02:57.8]} 6. Nge2 {[%clk 0:02:58.7]} 6... O-O {[%clk 0:02:58.7]} 7.
Bg5 {[%clk 0:02:58.1]} 7... Nc6 {[%clk 0:02:56.5]} 8. Qd2 {[%clk 0:02:57.5]}
8... Re8 {[%clk 0:02:53.5]} 9. O-O-O {[%clk 0:02:56.7]} 9... Nb4 {[%clk
0:02:50.4]} 10. Rhe1 {[%clk 0:02:52.3]} 10... Nxd3+ {[%clk 0:02:49.9]} 11. Qxd3
{[%clk 0:02:53.2]} 11... Bg4 {[%clk 0:02:48.9]} 12. f3 {[%clk 0:02:52.2]} 12...
Bh5 {[%clk 0:02:48.7]} 13. Nf4 {[%clk 0:02:51]} 13... Bg6 {[%clk 0:02:47.5]} 14.
Nxg6 {[%clk 0:02:51.3]} 14... hxg6 {[%clk 0:02:48.4]} 15. Kb1 {[%clk 0:02:50.4]}
15... c6 {[%clk 0:02:47.8]} 16. g4 {[%clk 0:02:46.1]} 16... Bd6 {[%clk
0:02:47.1]} 17. h4 {[%clk 0:02:42.8]} 17... Qd7 {[%clk 0:02:45.4]} 18. h5 {[%clk
0:02:37.2]} 18... Nh7 {[%clk 0:02:40]} 19. Bc1 {[%clk 0:02:21.7]} 19... gxh5
{[%clk 0:02:39.3]} 20. Rh1 {[%clk 0:02:17.6]} 20... g6 {[%clk 0:01:48.6]} 21.
gxh5 {[%clk 0:02:14.7]} 21... Qf5 {[%clk 0:01:48.7]} 22. hxg6 {[%clk 0:02:10.2]}
22... Qxd3 {[%clk 0:01:38.2]} 23. gxf7+ {[%clk 0:02:07.5]} 23... Kxf7 {[%clk
0:01:38]} 24. cxd3 {[%clk 0:01:50.9]} 24... Nf6 {[%clk 0:01:37.5]} 25. Bg5
{[%clk 0:01:51.2]} 25... Rh8 {[%clk 0:01:36.5]} 26. f4 {[%clk 0:01:49.8]} 26...
Rag8 {[%clk 0:01:33.8]} 27. Ne2 {[%clk 0:01:42.3]} 27... Rxh1 {[%clk 0:01:32.5]}
28. Rxh1 {[%clk 0:01:41.8]} 28... Rg7 {[%clk 0:01:31.4]} 29. Ng3 {[%clk
0:01:28.7]} 29... Rh7 {[%clk 0:01:25.1]} 30. Re1 {[%clk 0:01:19.2]} 30... Bb4
{[%clk 0:01:22.8]} 31. Re2 {[%clk 0:01:12.9]} 31... Rh3 {[%clk 0:01:21.6]} 32.
Nf5 {[%clk 0:01:09.3]} 32... Ng8 {[%clk 0:01:11]} 33. a3 {[%clk 0:01:04.9]}
33... Bf8 {[%clk 0:01:10.5]} 34. Kc2 {[%clk 0:01:04.8]} 34... a6 {[%clk
0:01:05.7]} 35. a4 {[%clk 0:00:58.3]} 35... b5 {[%clk 0:01:02.9]} 36. axb5
{[%clk 0:00:56.8]} 36... axb5 {[%clk 0:01:03.8]} 37. Re3 {[%clk 0:00:51.5]}
37... Rxe3 {[%clk 0:01:02]} 38. Nxe3 {[%clk 0:00:51.4]} 38... Be7 {[%clk
0:01:01.6]} 39. Ng4 {[%clk 0:00:44.1]} 39... Bd6 {[%clk 0:00:49.9]} 40. Kb3
{[%clk 0:00:38.8]} 40... Ke6 {[%clk 0:00:49.4]} 41. Ne3 {[%clk 0:00:25.9]} 41...
Ne7 {[%clk 0:00:47.7]} 42. Bxe7 {[%clk 0:00:23.2]} 42... Bxe7 {[%clk 0:00:46.3]}
43. Ng4 {[%clk 0:00:13]} 43... c5 {[%clk 0:00:37.4]} 44. dxc5 {[%clk 0:00:03.1]}
44... Bxc5 {[%clk 0:00:38.3]} 45. Kc3 {[%clk 0:00:02.1]} 45... d4+ {[%clk
0:00:35.6]} 46. Kc2 {[%clk 0:00:02.4]} 46... Kf5 {[%clk 0:00:35.4]} 47. Ne5
{[%clk 0:00:02.8]} 47... Kxf4 {[%clk 0:00:34.3]} 48. Nd7 {[%clk 0:00:03.4]}
48... Ba7 {[%clk 0:00:30.7]} 49. Nf6 {[%clk 0:00:03.7]} 49... Ke5 {[%clk
0:00:29.9]} 50. Ne4 {[%clk 0:00:04.2]} 50... Kd5 {[%clk 0:00:29]} 51. Kb3 {[%clk
0:00:04.9]} 51... Bc5 {[%clk 0:00:26.9]} 52. Nd2 {[%clk 0:00:05.5]} 52... Be7
{[%clk 0:00:25.7]} 53. Kc2 {[%clk 0:00:06.2]} 53... Bb4 {[%clk 0:00:25.5]} 54.
Nf3 {[%clk 0:00:05.7]} 54... Bd6 {[%clk 0:00:25.3]} 55. Kd2 {[%clk 0:00:06.1]}
55... Bf4+ {[%clk 0:00:25.1]} 56. Kc2 {[%clk 0:00:05.6]} 56... Bd6 {[%clk
0:00:26]} 57. Ne1 {[%clk 0:00:06.1]} 57... Bb4 {[%clk 0:00:26]} 58. Ng2 {[%clk
0:00:06.3]} 58... Bd6 {[%clk 0:00:26.9]} 59. Nh4 {[%clk 0:00:06.7]} 59... Ke5
{[%clk 0:00:26.6]} 60. Nf3+ {[%clk 0:00:06.9]} 60... Kd5 {[%clk 0:00:26.8]}
1/2-1/2

[Event "Late-Titled-Tuesday-Blitz-January-30-2024"]
[Site "Chess.com"]
[Date "2024.01.30"]
[Round "5"]
[White "FabianoCaruana"]
[Black "AlexeiShirov"]
[Result "1/2-1/2"]
[WhiteElo "3042"]
[BlackElo "2777"]
[TimeControl "180+1"]
[EndTime "14:57:27 PST"]
[Termination "Game drawn by repetition"]

1. c4 {[%clk 0:03:00.9]} 1... c6 {[%clk 0:02:59]} 2. Nf3 {[%clk 0:02:58.9]} 2...
d5 {[%clk 0:02:58.7]} 3. d4 {[%clk 0:02:57.6]} 3... Nf6 {[%clk 0:02:58.4]} 4. e3
{[%clk 0:02:58]} 4... Bf5 {[%clk 0:02:55.9]} 5. Nc3 {[%clk 0:02:56.1]} 5... e6
{[%clk 0:02:55.8]} 6. Nh4 {[%clk 0:02:56.2]} 6... Be4 {[%clk 0:02:56.4]} 7. f3
{[%clk 0:02:56.2]} 7... Bg6 {[%clk 0:02:56.9]} 8. Qb3 {[%clk 0:02:56.8]} 8...
Qc7 {[%clk 0:02:57.2]} 9. Bd2 {[%clk 0:02:57.1]} 9... Be7 {[%clk 0:02:52.9]} 10.
g3 {[%clk 0:02:56.8]} 10... a6 {[%clk 0:02:44.2]} 11. Rc1 {[%clk 0:02:54.6]}
11... dxc4 {[%clk 0:02:43.2]} 12. Bxc4 {[%clk 0:02:55]} 12... c5 {[%clk
0:02:22.4]} 13. dxc5 {[%clk 0:02:42.1]} 13... Nbd7 {[%clk 0:02:13.1]} 14. Na4
{[%clk 0:02:42.2]} 14... Nxc5 {[%clk 0:01:45.1]} 15. Nxc5 {[%clk 0:02:41]} 15...
Bxc5 {[%clk 0:01:44.8]} 16. Nxg6 {[%clk 0:02:16.7]} 16... hxg6 {[%clk
0:01:43.8]} 17. O-O {[%clk 0:02:14.9]} 17... O-O {[%clk 0:01:39.1]} 18. Kg2
{[%clk 0:02:07.1]} 18... Rfd8 {[%clk 0:01:34.5]} 19. Rc2 {[%clk 0:02:05.3]}
19... b5 {[%clk 0:01:24.5]} 20. Be2 {[%clk 0:02:03.6]} 20... Qa7 {[%clk
0:01:15.9]} 21. e4 {[%clk 0:01:57.8]} 21... Rd7 {[%clk 0:00:53.8]} 22. Rfc1
{[%clk 0:01:54.5]} 22... Rxd2 {[%clk 0:00:52.2]} 23. Rxd2 {[%clk 0:01:54.4]}
23... Be3 {[%clk 0:00:52]} 24. Qd3 {[%clk 0:01:47.3]} 24... Bxd2 {[%clk
0:00:50.9]} 25. Qxd2 {[%clk 0:01:48.2]} 25... Qb6 {[%clk 0:00:51.1]} 26. Qc3
{[%clk 0:01:38.8]} 26... Rd8 {[%clk 0:00:50.6]} 27. Rd1 {[%clk 0:01:25.7]} 27...
Rxd1 {[%clk 0:00:48.8]} 28. Bxd1 {[%clk 0:01:26.6]} 28... g5 {[%clk 0:00:48]}
29. Qd2 {[%clk 0:00:57.4]} 29... Qc5 {[%clk 0:00:45.1]} 30. Bc2 {[%clk 0:00:44]}
30... g6 {[%clk 0:00:43.7]} 31. Bd3 {[%clk 0:00:39.7]} 31... Kg7 {[%clk
0:00:42.9]} 32. Be2 {[%clk 0:00:27.3]} 32... g4 {[%clk 0:00:41]} 33. b3 {[%clk
0:00:16.7]} 33... gxf3+ {[%clk 0:00:40.6]} 34. Bxf3 {[%clk 0:00:17.6]} 34... Qe5
{[%clk 0:00:40.8]} 35. Qe2 {[%clk 0:00:15]} 35... Qd4 {[%clk 0:00:40.7]} 36. Qf2
{[%clk 0:00:12.8]} 36... Qe5 {[%clk 0:00:40.2]} 37. Qe2 {[%clk 0:00:11.5]} 37...
Qd4 {[%clk 0:00:40.4]} 38. h4 {[%clk 0:00:12.1]} 38... Nd7 {[%clk 0:00:39.9]}
39. Qf2 {[%clk 0:00:12.3]} 39... Qc3 {[%clk 0:00:39]} 40. h5 {[%clk 0:00:10.2]}
40... Ne5 {[%clk 0:00:37.3]} 41. Be2 {[%clk 0:00:10.6]} 41... gxh5 {[%clk
0:00:36.5]} 42. Bxh5 {[%clk 0:00:11.5]} 42... f6 {[%clk 0:00:33.2]} 43. Be2
{[%clk 0:00:09.3]} 43... Qc7 {[%clk 0:00:32.1]} 44. Qe3 {[%clk 0:00:08.2]} 44...
Qd6 {[%clk 0:00:30.4]} 45. a4 {[%clk 0:00:08.1]} 45... bxa4 {[%clk 0:00:29.9]}
46. bxa4 {[%clk 0:00:09]} 46... Kg6 {[%clk 0:00:29.1]} 47. a5 {[%clk 0:00:08.5]}
47... Qb4 {[%clk 0:00:28.4]} 48. Qb6 {[%clk 0:00:07.1]} 48... Qxe4+ {[%clk
0:00:28.1]} 49. Kf2 {[%clk 0:00:06]} 49... Nd3+ {[%clk 0:00:28]} 50. Bxd3 {[%clk
0:00:06.1]} 50... Qxd3 {[%clk 0:00:28]} 51. Qxe6 {[%clk 0:00:06.2]} 51... Qd2+
{[%clk 0:00:26.7]} 52. Kf3 {[%clk 0:00:06.2]} 52... Qxa5 {[%clk 0:00:26.2]} 53.
Qg8+ {[%clk 0:00:06]} 53... Kh6 {[%clk 0:00:26.2]} 54. Qh8+ {[%clk 0:00:06.4]}
54... Kg6 {[%clk 0:00:26.5]} 55. Qg8+ {[%clk 0:00:06.9]} 55... Kh6 {[%clk
0:00:26.7]} 56. Qh8+ {[%clk 0:00:07.4]} 56... Kg6 {[%clk 0:00:26.6]} 57. Qg8+
{[%clk 0:00:07.9]} 1/2-1/2

[Event "Late-Titled-Tuesday-Blitz-January-30-2024"]
[Site "Chess.com"]
[Date "2024.01.30"]
[Round "5"]
[White "Navyblue1"]
[Black "Nouali_Mohamed"]
[Result "0-1"]
[WhiteElo "2157"]
[BlackElo "2467"]
[TimeControl "180+1"]
[EndTime "14:57:28 PST"]
[Termination "Nouali_Mohamed won on time"]

1. d4 {[%clk 0:03:00.9]} 1... Nf6 {[%clk 0:02:59.9]} 2. c4 {[%clk 0:02:58.6]}
2... g6 {[%clk 0:03:00.1]} 3. Nc3 {[%clk 0:02:57.3]} 3... Bg7 {[%clk 0:03:00.6]}
4. e4 {[%clk 0:02:55.2]} 4... d6 {[%clk 0:03:01]} 5. h3 {[%clk 0:02:50.3]} 5...
O-O {[%clk 0:03:01.1]} 6. Be3 {[%clk 0:02:46.7]} 6... c5 {[%clk 0:03:01.4]} 7.
dxc5 {[%clk 0:02:28.3]} 7... Qa5 {[%clk 0:03:01.2]} 8. Bd2 {[%clk 0:02:22.1]}
8... Qxc5 {[%clk 0:02:58.6]} 9. Nf3 {[%clk 0:02:22.1]} 9... Be6 {[%clk
0:02:41.6]} 10. b3 {[%clk 0:01:44.9]} 10... Nc6 {[%clk 0:02:40.6]} 11. Rc1
{[%clk 0:01:42.7]} 11... Nd4 {[%clk 0:02:20.8]} 12. Nxd4 {[%clk 0:01:36.8]}
12... Qxd4 {[%clk 0:02:21.7]} 13. Qc2 {[%clk 0:01:35.9]} 13... Nh5 {[%clk
0:02:10.7]} 14. Qd3 {[%clk 0:01:33.8]} 14... f5 {[%clk 0:02:06.9]} 15. Qxd4
{[%clk 0:01:31.2]} 15... Bxd4 {[%clk 0:02:07.7]} 16. Be2 {[%clk 0:01:30.3]}
16... fxe4 {[%clk 0:01:59.5]} 17. Nxe4 {[%clk 0:01:23.6]} 17... Nf4 {[%clk
0:01:59.7]} 18. Bxf4 {[%clk 0:00:55.1]} 18... Rxf4 {[%clk 0:02:00.6]} 19. Bf3
{[%clk 0:00:36.8]} 19... Kg7 {[%clk 0:01:39.8]} 20. Nd2 {[%clk 0:00:22.1]} 20...
Rb8 {[%clk 0:01:32.2]} 21. O-O {[%clk 0:00:20.2]} 21... b6 {[%clk 0:01:32.5]}
22. Rce1 {[%clk 0:00:16.8]} 22... Kf7 {[%clk 0:01:17.7]} 23. Re4 {[%clk
0:00:16.3]} 23... Rxe4 {[%clk 0:01:16.5]} 24. Nxe4 {[%clk 0:00:17.2]} 24... h6
{[%clk 0:01:16.4]} 25. Rd1 {[%clk 0:00:15.7]} 25... Be5 {[%clk 0:01:16.2]} 26.
Kf1 {[%clk 0:00:14.7]} 26... a5 {[%clk 0:01:15.8]} 27. Nd2 {[%clk 0:00:13.7]}
27... a4 {[%clk 0:01:15.5]} 28. Be4 {[%clk 0:00:13]} 28... axb3 {[%clk
0:01:15.4]} 29. axb3 {[%clk 0:00:12.3]} 29... b5 {[%clk 0:01:15]} 30. Bd3 {[%clk
0:00:11.7]} 30... bxc4 {[%clk 0:01:13.8]} 31. Bxc4 {[%clk 0:00:11.8]} 31... d5
{[%clk 0:01:10.4]} 32. Bd3 {[%clk 0:00:10.7]} 32... g5 {[%clk 0:01:07.7]} 33.
Ke2 {[%clk 0:00:10.7]} 33... Bf6 {[%clk 0:01:06.4]} 34. Rc1 {[%clk 0:00:08.8]}
34... Ra8 {[%clk 0:01:02.1]} 35. Rc6 {[%clk 0:00:07.9]} 35... Ra2 {[%clk
0:01:01.2]} 36. b4 {[%clk 0:00:06.6]} 36... Be5 {[%clk 0:00:48.6]} 37. b5 {[%clk
0:00:06.2]} 37... Bf4 {[%clk 0:00:48.6]} 38. Rc2 {[%clk 0:00:06.3]} 38... Rxc2
{[%clk 0:00:45]} 39. Bxc2 {[%clk 0:00:06.3]} 39... Bc7 {[%clk 0:00:43.6]} 40.
Bd3 {[%clk 0:00:06.3]} 40... Kf6 {[%clk 0:00:41.2]} 41. Nb3 {[%clk 0:00:04.4]}
41... Bb6 {[%clk 0:00:41.5]} 42. Kf3 {[%clk 0:00:03.5]} 42... Bd7 {[%clk
0:00:38.9]} 43. Ke2 {[%clk 0:00:03.5]} 43... e5 {[%clk 0:00:39]} 44. Kf1 {[%clk
0:00:03]} 44... e4 {[%clk 0:00:39.1]} 45. Be2 {[%clk 0:00:03.7]} 45... d4 {[%clk
0:00:37.2]} 46. Nd2 {[%clk 0:00:03.7]} 46... Bf5 {[%clk 0:00:20.1]} 47. Nc4
{[%clk 0:00:03]} 47... Ba7 {[%clk 0:00:17.6]} 48. b6 {[%clk 0:00:03.1]} 48...
Bb8 {[%clk 0:00:17.7]} 49. Na5 {[%clk 0:00:02.6]} 49... Bd7 {[%clk 0:00:17.6]}
0-1

[Event "Late-Titled-Tuesday-Blitz-January-30-2024"]
[Site "Chess.com"]
[Date "2024.01.30"]
[Round "5"]
[White "GoltsevDmitry2000"]
[Black "Pingah9"]
[Result "1-0"]
[WhiteElo "2809"]
[BlackElo "2528"]
[TimeControl "180+1"]
[EndTime "14:57:30 PST"]
[Termination "GoltsevDmitry2000 won by resignation"]

1. e4 {[%clk 0:02:59.4]} 1... g6 {[%clk 0:02:59]} 2. h4 {[%clk 0:02:58.9]} 2...
h6 {[%clk 0:02:57.1]} 3. h5 {[%clk 0:02:58.6]} 3... g5 {[%clk 0:02:57.1]} 4. d4
{[%clk 0:02:58.1]} 4... c5 {[%clk 0:02:56.8]} 5. dxc5 {[%clk 0:02:55.9]} 5...
Qa5+ {[%clk 0:02:54.4]} 6. Bd2 {[%clk 0:02:55.7]} 6... Qxc5 {[%clk 0:02:54.6]}
7. Bc3 {[%clk 0:02:56.4]} 7... Nf6 {[%clk 0:02:50.3]} 8. Nd2 {[%clk 0:02:54.4]}
8... Bg7 {[%clk 0:02:49.4]} 9. Ngf3 {[%clk 0:02:52.2]} 9... d6 {[%clk
0:02:41.4]} 10. Nb3 {[%clk 0:02:44.3]} 10... Qc7 {[%clk 0:02:38.8]} 11. e5
{[%clk 0:02:43.7]} 11... Ng4 {[%clk 0:02:30.5]} 12. Bb5+ {[%clk 0:02:24.3]}
12... Bd7 {[%clk 0:02:24.4]} 13. Bxd7+ {[%clk 0:02:23.8]} 13... Nxd7 {[%clk
0:02:25]} 14. Nxg5 {[%clk 0:02:23.1]} 14... Ndxe5 {[%clk 0:01:55.8]} 15. Ne4
{[%clk 0:02:14.2]} 15... Qc4 {[%clk 0:01:53.2]} 16. Nbd2 {[%clk 0:02:12.1]}
16... Qa6 {[%clk 0:01:48.6]} 17. Qe2 {[%clk 0:02:00.8]} 17... Qxe2+ {[%clk
0:01:42.3]} 18. Kxe2 {[%clk 0:02:00.8]} 18... O-O {[%clk 0:01:36.9]} 19. f3
{[%clk 0:01:58.3]} 19... Nf6 {[%clk 0:01:36]} 20. Nxf6+ {[%clk 0:01:58.7]} 20...
Bxf6 {[%clk 0:01:35.7]} 21. Ne4 {[%clk 0:01:59.4]} 21... Bg7 {[%clk 0:01:34.9]}
22. g4 {[%clk 0:01:59.6]} 22... f5 {[%clk 0:01:31.6]} 23. gxf5 {[%clk 0:01:56]}
23... Rxf5 {[%clk 0:01:32.5]} 24. Bxe5 {[%clk 0:01:56.3]} 24... Bxe5 {[%clk
0:01:30.2]} 25. Rag1+ {[%clk 0:01:56.8]} 25... Kh7 {[%clk 0:01:29.5]} 26. c3
{[%clk 0:01:53.8]} 26... Raf8 {[%clk 0:01:28.1]} 27. Rh3 {[%clk 0:01:51.9]}
27... d5 {[%clk 0:01:18.6]} 28. Nc5 {[%clk 0:01:48]} 28... Bf6 {[%clk
0:01:09.7]} 29. Rg4 {[%clk 0:01:20]} 29... Rc8 {[%clk 0:01:02.1]} 30. Nd3 {[%clk
0:01:09.3]} 30... d4 {[%clk 0:00:59.4]} 31. cxd4 {[%clk 0:01:06.9]} 31... Rc2+
{[%clk 0:00:57.4]} 32. Ke3 {[%clk 0:01:06.1]} 32... Bg5+ {[%clk 0:00:43.4]} 33.
f4 {[%clk 0:01:05.7]} 33... Bf6 {[%clk 0:00:44.1]} 34. Ne5 {[%clk 0:01:00.2]}
34... Rxb2 {[%clk 0:00:42]} 35. Ke4 {[%clk 0:00:59]} 35... e6 {[%clk 0:00:40]}
36. Rhg3 {[%clk 0:00:52.4]} 36... Rb4 {[%clk 0:00:31.7]} 37. a3 {[%clk
0:00:40.1]} 37... Ra4 {[%clk 0:00:31.5]} 38. Rc3 {[%clk 0:00:36.1]} 38... Bxe5
{[%clk 0:00:20]} 39. fxe5 {[%clk 0:00:33.2]} 39... Rg5 {[%clk 0:00:16.6]} 40.
Rc7+ {[%clk 0:00:30.8]} 40... Kg8 {[%clk 0:00:16.8]} 41. Rxg5+ {[%clk
0:00:28.1]} 41... hxg5 {[%clk 0:00:17.7]} 42. Rxb7 {[%clk 0:00:26.7]} 42... Rxa3
{[%clk 0:00:18.1]} 43. Re7 {[%clk 0:00:26.9]} 43... Rh3 {[%clk 0:00:11.5]} 44.
Rxe6 {[%clk 0:00:25.3]} 44... Rxh5 {[%clk 0:00:12.1]} 45. d5 {[%clk 0:00:17.6]}
45... Rh1 {[%clk 0:00:10.3]} 46. d6 {[%clk 0:00:15.1]} 46... Rd1 {[%clk
0:00:09.3]} 47. Re8+ {[%clk 0:00:13.4]} 47... Kf7 {[%clk 0:00:09.1]} 48. Re7+
{[%clk 0:00:13.9]} 48... Kf8 {[%clk 0:00:09.1]} 49. Rxa7 {[%clk 0:00:14.4]}
49... g4 {[%clk 0:00:08.8]} 50. Kf4 {[%clk 0:00:14.9]} 50... Rd4+ {[%clk
0:00:07.3]} 51. Kg3 {[%clk 0:00:14.2]} 51... Re4 {[%clk 0:00:07.3]} 52. Re7
{[%clk 0:00:13]} 52... Kg8 {[%clk 0:00:04.9]} 53. e6 {[%clk 0:00:12]} 53... Kf8
{[%clk 0:00:04.3]} 54. Rf7+ {[%clk 0:00:12.3]} 1-0